[Event "Titled Tuesday Blitz May 2 Early 2023"]
[White "Danielyan, Vahe"]
[Black "Floresvillar Gonzalez, Luis Migu"]
[WhiteFideId "13304828"]
[BlackFideId "5100542"]
[WhiteElo "2423"]
[BlackElo "2040"]
[Result "1-0"]
[Round "01"]
[TimeControl "180+2"]
[Date "2023.05.02"]
[WhiteClock "0:00:00"]
[BlackClock "0:00:00"]

1. d4 {[%clk 0:00:01]}  d5 {[%clk 0:00:01]} 2. c4 {[%clk 0:00:01]}  c6 {[%clk 0:00:01]} 3. Nc3 {[%clk 0:00:01]}  Nf6 {[%clk 0:00:01]} 4. Nf3 {[%clk 0:00:01]}  dxc4 {[%clk 0:00:01]} 5. a4 {[%clk 0:00:01]}  Bf5 {[%clk 0:00:01]} 6. Ne5 {[%clk 0:00:01]}  Nbd7 {[%clk 0:00:01]} 7. Nxc4 {[%clk 0:00:01]}  e6 {[%clk 0:00:01]} 8. f3 {[%clk 0:00:01]}  Bb4 {[%clk 0:00:01]} 9. e4 {[%clk 0:00:01]}  Bg6 {[%clk 0:00:01]} 10. Be2 {[%clk 0:00:01]}  O-O {[%clk 0:00:01]} 11. O-O {[%clk 0:00:01]}  Qe7 {[%clk 0:00:01]} 12. Be3 {[%clk 0:00:01]}  Rad8 {[%clk 0:00:01]} 13. Qb3 {[%clk 0:00:01]}  a5 {[%clk 0:00:01]} 14. Rfd1 {[%clk 0:00:01]}  c5 {[%clk 0:00:01]} 15. Nb5 {[%clk 0:00:01]}  cxd4 {[%clk 0:00:01]} 16. Bxd4 {[%clk 0:00:01]}  e5 {[%clk 0:00:01]} 17. Bf2 {[%clk 0:00:01]}  Bc5 {[%clk 0:00:01]} 18. Ne3 {[%clk 0:00:00]}  b6 {[%clk 0:00:01]} 19. Rac1 {[%clk 0:00:00]}  Rc8 {[%clk 0:00:01]} 20. Nc3 {[%clk 0:00:00]}  Rfd8 {[%clk 0:00:01]} 21. Ncd5 {[%clk 0:00:00]}  Nxd5 {[%clk 0:00:01]} 22. Nxd5 {[%clk 0:00:00]}  Bxf2+ {[%clk 0:00:01]} 23. Kxf2 {[%clk 0:00:00]}  Qh4+ {[%clk 0:00:01]} 24. Kg1 {[%clk 0:00:00]}  h6 {[%clk 0:00:00]} 25. Qe3 {[%clk 0:00:00]}  Qg5 {[%clk 0:00:00]} 26. Qxg5 {[%clk 0:00:00]}  hxg5 {[%clk 0:00:00]} 27. Rxc8 {[%clk 0:00:00]}  Rxc8 {[%clk 0:00:00]} 28. Ne7+ {[%clk 0:00:00]}  Kf8 {[%clk 0:00:00]} 29. Nxc8 {[%clk 0:00:00]}  Nc5 {[%clk 0:00:00]} 30. Nxb6 {[%clk 0:00:00]}  f6 {[%clk 0:00:00]} 31. Nd7+ {[%clk 0:00:00]}  Nxd7 {[%clk 0:00:00]} 32. Rxd7 {[%clk 0:00:00]} 1-0


[Site "https://www.chess.com"]

[Event "Titled Tuesday Blitz May 2 Early 2023"]
[White "Ciuffoletti, Paolo"]
[Black "Loiacono, Antonio"]
[WhiteFideId "807630"]
[BlackFideId "895415"]
[WhiteElo "2143"]
[BlackElo "2257"]
[Result "0-1"]
[Round "01"]
[TimeControl "180+2"]
[Date "2023.05.02"]
[WhiteClock "0:00:00"]
[BlackClock "0:00:00"]

1. e4 {[%clk 0:00:01]}  e5 {[%clk 0:00:01]} 2. Nf3 {[%clk 0:00:01]}  Nc6 {[%clk 0:00:01]} 3. Bc4 {[%clk 0:00:01]}  Bc5 {[%clk 0:00:01]} 4. b4 {[%clk 0:00:01]}  Bxb4 {[%clk 0:00:01]} 5. c3 {[%clk 0:00:01]}  Be7 {[%clk 0:00:01]} 6. d4 {[%clk 0:00:01]}  Na5 {[%clk 0:00:01]} 7. Nxe5 {[%clk 0:00:01]}  Nxc4 {[%clk 0:00:01]} 8. Nxc4 {[%clk 0:00:01]}  d5 {[%clk 0:00:01]} 9. exd5 {[%clk 0:00:01]}  Qxd5 {[%clk 0:00:01]} 10. Ne3 {[%clk 0:00:01]}  Qa5 {[%clk 0:00:01]} 11. O-O {[%clk 0:00:01]}  Nf6 {[%clk 0:00:01]} 12. c4 {[%clk 0:00:01]}  c6 {[%clk 0:00:01]} 13. Bb2 {[%clk 0:00:01]}  Be6 {[%clk 0:00:01]} 14. Nd2 {[%clk 0:00:01]}  O-O {[%clk 0:00:01]} 15. Nb3 {[%clk 0:00:01]}  Qa6 {[%clk 0:00:01]} 16. Qc2 {[%clk 0:00:01]}  Rfd8 {[%clk 0:00:01]} 17. Rad1 {[%clk 0:00:01]}  Rac8 {[%clk 0:00:01]} 18. Ba1 {[%clk 0:00:01]}  b5 {[%clk 0:00:01]} 19. cxb5 {[%clk 0:00:00]}  cxb5 {[%clk 0:00:01]} 20. Nc5 {[%clk 0:00:00]}  Qxa2 {[%clk 0:00:01]} 21. Bb2 {[%clk 0:00:00]}  Qa5 {[%clk 0:00:00]} 22. Ra1 {[%clk 0:00:00]}  Qb6 {[%clk 0:00:00]} 23. Rfc1 {[%clk 0:00:00]}  Nd7 {[%clk 0:00:00]} 24. Nxd7 {[%clk 0:00:00]}  Rxc2 {[%clk 0:00:00]} 25. Nxb6 {[%clk 0:00:00]}  Rxc1+ {[%clk 0:00:00]} 26. Rxc1 {[%clk 0:00:00]}  axb6 {[%clk 0:00:00]} 27. Rc6 {[%clk 0:00:00]}  Bf6 {[%clk 0:00:00]} 28. Rxb6 {[%clk 0:00:00]}  Bc4 {[%clk 0:00:00]} 29. h3 {[%clk 0:00:00]}  h6 {[%clk 0:00:00]} 30. Rc6 {[%clk 0:00:00]}  Bxd4 {[%clk 0:00:00]} 31. Bxd4 {[%clk 0:00:00]}  Rxd4 {[%clk 0:00:00]} 32. Nf5 {[%clk 0:00:00]}  Rd2 {[%clk 0:00:00]} 33. Rc8+ {[%clk 0:00:00]}  Kh7 {[%clk 0:00:00]} 34. Ne3 {[%clk 0:00:00]}  Be6 {[%clk 0:00:00]} 35. Rb8 {[%clk 0:00:00]}  Rb2 {[%clk 0:00:00]} 36. Ng4 {[%clk 0:00:00]}  Bxg4 {[%clk 0:00:00]} 37. hxg4 {[%clk 0:00:00]}  b4 {[%clk 0:00:00]} 38. Kh2 {[%clk 0:00:00]}  b3 {[%clk 0:00:00]} 39. f3 {[%clk 0:00:00]}  Kg6 {[%clk 0:00:00]} 40. Kg3 {[%clk 0:00:00]}  Kf6 {[%clk 0:00:00]} 41. Kh3 {[%clk 0:00:00]}  g5 {[%clk 0:00:00]} 42. Rb7 {[%clk 0:00:00]}  Ke6 {[%clk 0:00:00]} 43. Kg3 {[%clk 0:00:00]}  f6 {[%clk 0:00:00]} 44. Rb6+ {[%clk 0:00:00]}  Ke5 {[%clk 0:00:00]} 45. Rb7 {[%clk 0:00:00]}  Rb1 {[%clk 0:00:00]} 46. Kf2 {[%clk 0:00:00]}  Kd4 {[%clk 0:00:00]} 0-1


[Site "https://www.chess.com"]

[Event "Titled Tuesday Blitz May 2 Early 2023"]
[White "Demin, Vladimir"]
[Black "Kiseljova, Marya"]
[WhiteFideId "4167457"]
[BlackFideId "4155009"]
[WhiteElo "2430"]
[BlackElo "1851"]
[Result "1-0"]
[Round "01"]
[TimeControl "180+2"]
[Date "2023.05.02"]
[WhiteClock "0:00:01"]
[BlackClock "0:00:00"]

1. e4 {[%clk 0:00:01]}  c5 {[%clk 0:00:01]} 2. Nf3 {[%clk 0:00:01]}  Nc6 {[%clk 0:00:01]} 3. c3 {[%clk 0:00:01]}  Nf6 {[%clk 0:00:01]} 4. e5 {[%clk 0:00:01]}  Nd5 {[%clk 0:00:01]} 5. d4 {[%clk 0:00:01]}  cxd4 {[%clk 0:00:01]} 6. cxd4 {[%clk 0:00:01]}  d6 {[%clk 0:00:01]} 7. Bc4 {[%clk 0:00:01]}  Nb6 {[%clk 0:00:01]} 8. Bb5 {[%clk 0:00:01]}  Bg4 {[%clk 0:00:01]} 9. h3 {[%clk 0:00:01]}  Bxf3 {[%clk 0:00:01]} 10. Qxf3 {[%clk 0:00:01]}  d5 {[%clk 0:00:01]} 11. e6 {[%clk 0:00:01]}  fxe6 {[%clk 0:00:01]} 12. Qh5+ {[%clk 0:00:01]}  Kd7 {[%clk 0:00:01]} 13. O-O {[%clk 0:00:01]}  a6 {[%clk 0:00:01]} 14. Bxc6+ {[%clk 0:00:01]}  bxc6 {[%clk 0:00:01]} 15. Nc3 {[%clk 0:00:01]}  Qc7 {[%clk 0:00:01]} 16. Re1 {[%clk 0:00:01]}  g6 {[%clk 0:00:01]} 17. Qg4 {[%clk 0:00:01]}  Qd6 {[%clk 0:00:00]} 18. Bf4 {[%clk 0:00:01]}  h5 {[%clk 0:00:00]} 19. Qg3 {[%clk 0:00:01]}  Qb4 {[%clk 0:00:00]} 20. Qxg6 {[%clk 0:00:01]}  Qxd4 {[%clk 0:00:00]} 21. Qxe6+ {[%clk 0:00:01]}  Kd8 {[%clk 0:00:00]} 22. Be5 {[%clk 0:00:01]}  Rh6 {[%clk 0:00:00]} 23. Qf5 {[%clk 0:00:01]}  Rf6 {[%clk 0:00:00]} 24. Qxf6 {[%clk 0:00:01]}  exf6 {[%clk 0:00:00]} 25. Bxd4 {[%clk 0:00:01]}  Be7 {[%clk 0:00:00]} 26. Bxb6+ {[%clk 0:00:01]}  Kd7 {[%clk 0:00:00]} 27. Na4 {[%clk 0:00:01]}  Rb8 {[%clk 0:00:00]} 28. a3 {[%clk 0:00:01]}  Bd6 {[%clk 0:00:00]} 29. b4 {[%clk 0:00:01]}  Be5 {[%clk 0:00:00]} 30. Rad1 {[%clk 0:00:01]} 1-0


[Site "https://www.chess.com"]

[Event "Titled Tuesday Blitz May 2 Early 2023"]
[White "Osiecki, Stanislaw"]
[Black "Jovic, Stanoje"]
[WhiteFideId "1102990"]
[BlackFideId "905020"]
[WhiteElo "2088"]
[BlackElo "2236"]
[Result "0-1"]
[Round "01"]
[TimeControl "180+2"]
[Date "2023.05.02"]
[WhiteClock "0:00:00"]
[BlackClock "0:00:00"]

1. e4 {[%clk 0:00:01]}  c6 {[%clk 0:00:01]} 2. d4 {[%clk 0:00:01]}  d5 {[%clk 0:00:01]} 3. e5 {[%clk 0:00:01]}  c5 {[%clk 0:00:01]} 4. dxc5 {[%clk 0:00:01]}  e6 {[%clk 0:00:01]} 5. Nf3 {[%clk 0:00:01]}  Bxc5 {[%clk 0:00:01]} 6. Bd3 {[%clk 0:00:01]}  Ne7 {[%clk 0:00:01]} 7. O-O {[%clk 0:00:01]}  Ng6 {[%clk 0:00:01]} 8. Re1 {[%clk 0:00:01]}  Qb6 {[%clk 0:00:01]} 9. Qe2 {[%clk 0:00:01]}  Bd7 {[%clk 0:00:01]} 10. c3 {[%clk 0:00:01]}  a5 {[%clk 0:00:01]} 11. Nbd2 {[%clk 0:00:01]}  a4 {[%clk 0:00:01]} 12. Nf1 {[%clk 0:00:01]}  Nc6 {[%clk 0:00:01]} 13. Ng3 {[%clk 0:00:01]}  O-O {[%clk 0:00:01]} 14. h4 {[%clk 0:00:01]}  f6 {[%clk 0:00:01]} 15. Bxg6 {[%clk 0:00:01]}  hxg6 {[%clk 0:00:01]} 16. exf6 {[%clk 0:00:01]}  gxf6 {[%clk 0:00:01]} 17. Qc2 {[%clk 0:00:01]}  Kf7 {[%clk 0:00:01]} 18. h5 {[%clk 0:00:01]}  Rg8 {[%clk 0:00:01]} 19. h6 {[%clk 0:00:01]}  e5 {[%clk 0:00:01]} 20. h7 {[%clk 0:00:01]}  Rg7 {[%clk 0:00:01]} 21. Nh4 {[%clk 0:00:01]}  Rh8 {[%clk 0:00:01]} 22. Bh6 {[%clk 0:00:01]}  Rhxh7 {[%clk 0:00:01]} 23. Bxg7 {[%clk 0:00:01]}  Rxg7 {[%clk 0:00:01]} 24. b4 {[%clk 0:00:01]}  Bd6 {[%clk 0:00:01]} 25. Qxa4 {[%clk 0:00:00]}  e4 {[%clk 0:00:00]} 26. Nh1 {[%clk 0:00:00]}  Rh7 {[%clk 0:00:00]} 27. g3 {[%clk 0:00:00]}  Ne5 {[%clk 0:00:00]} 28. Qc2 {[%clk 0:00:00]}  Rxh4 {[%clk 0:00:00]} 29. gxh4 {[%clk 0:00:00]}  Nf3+ {[%clk 0:00:00]} 30. Kg2 {[%clk 0:00:00]}  Be5 {[%clk 0:00:00]} 31. Ng3 {[%clk 0:00:00]}  Nxh4+ {[%clk 0:00:00]} 32. Kf1 {[%clk 0:00:00]}  Bb5+ {[%clk 0:00:00]} 33. Ne2 {[%clk 0:00:00]}  Qe6 {[%clk 0:00:00]} 34. Red1 {[%clk 0:00:00]}  Qh3+ {[%clk 0:00:00]} 35. Ke1 {[%clk 0:00:00]}  Nf3# {[%clk 0:00:00]} 0-1


[Site "https://www.chess.com"]

[Event "Titled Tuesday Blitz May 2 Early 2023"]
[White "Mortazavi, Ali"]
[Black "Vargas Rodriguez, Wilver"]
[WhiteFideId "401323"]
[BlackFideId "3509672"]
[WhiteElo "2339"]
[BlackElo "2224"]
[Result "1-0"]
[Round "01"]
[TimeControl "180+2"]
[Date "2023.05.02"]
[WhiteClock "0:00:00"]
[BlackClock "0:00:00"]

1. Nf3 {[%clk 0:00:01]}  d5 {[%clk 0:00:01]} 2. g3 {[%clk 0:00:01]}  Nf6 {[%clk 0:00:01]} 3. Bg2 {[%clk 0:00:01]}  c6 {[%clk 0:00:01]} 4. O-O {[%clk 0:00:01]}  Bf5 {[%clk 0:00:01]} 5. d3 {[%clk 0:00:01]}  e6 {[%clk 0:00:01]} 6. c4 {[%clk 0:00:01]}  h6 {[%clk 0:00:01]} 7. Be3 {[%clk 0:00:01]}  Be7 {[%clk 0:00:01]} 8. Qb3 {[%clk 0:00:01]}  Qc7 {[%clk 0:00:01]} 9. Nc3 {[%clk 0:00:01]}  Nbd7 {[%clk 0:00:01]} 10. cxd5 {[%clk 0:00:01]}  exd5 {[%clk 0:00:01]} 11. Rac1 {[%clk 0:00:01]}  Nc5 {[%clk 0:00:01]} 12. Bxc5 {[%clk 0:00:01]}  Bxc5 {[%clk 0:00:01]} 13. Nxd5 {[%clk 0:00:01]}  Nxd5 {[%clk 0:00:01]} 14. Rxc5 {[%clk 0:00:01]}  Be6 {[%clk 0:00:01]} 15. Nd4 {[%clk 0:00:01]}  Qb6 {[%clk 0:00:00]} 16. Nxe6 {[%clk 0:00:01]}  fxe6 {[%clk 0:00:00]} 17. Qc2 {[%clk 0:00:01]}  O-O {[%clk 0:00:00]} 18. d4 {[%clk 0:00:00]}  Qa6 {[%clk 0:00:00]} 19. a3 {[%clk 0:00:00]}  Rf6 {[%clk 0:00:00]} 20. Qe4 {[%clk 0:00:00]}  Raf8 {[%clk 0:00:00]} 21. Bh3 {[%clk 0:00:00]}  Nc7 {[%clk 0:00:00]} 22. Re5 {[%clk 0:00:00]}  Qc4 {[%clk 0:00:00]} 23. e3 {[%clk 0:00:00]}  Qb3 {[%clk 0:00:00]} 24. Qb1 {[%clk 0:00:00]}  Qc4 {[%clk 0:00:00]} 25. Rc5 {[%clk 0:00:00]}  Qe2 {[%clk 0:00:00]} 26. Rc2 {[%clk 0:00:00]}  Qf3 {[%clk 0:00:00]} 27. Bg2 {[%clk 0:00:00]}  Qh5 {[%clk 0:00:00]} 28. Rc5 {[%clk 0:00:00]} 1-0


[Site "https://www.chess.com"]

[Event "Titled Tuesday Blitz May 2 Early 2023"]
[White "Rodchenkov, Sergey D."]
[Black "Cramling Bellon, Anna"]
[WhiteFideId "4168712"]
[BlackFideId "32009232"]
[WhiteElo "2277"]
[BlackElo "1972"]
[Result "1-0"]
[Round "01"]
[TimeControl "180+2"]
[Date "2023.05.02"]
[WhiteClock "0:00:00"]
[BlackClock "0:00:00"]

1. e4 {[%clk 0:00:01]}  c5 {[%clk 0:00:01]} 2. Nf3 {[%clk 0:00:01]}  e6 {[%clk 0:00:01]} 3. d4 {[%clk 0:00:01]}  cxd4 {[%clk 0:00:01]} 4. Nxd4 {[%clk 0:00:01]}  Nf6 {[%clk 0:00:01]} 5. Nc3 {[%clk 0:00:01]}  Nc6 {[%clk 0:00:01]} 6. Nxc6 {[%clk 0:00:01]}  bxc6 {[%clk 0:00:01]} 7. e5 {[%clk 0:00:01]}  Nd5 {[%clk 0:00:01]} 8. Ne4 {[%clk 0:00:01]}  Qc7 {[%clk 0:00:01]} 9. f4 {[%clk 0:00:01]}  Qb6 {[%clk 0:00:01]} 10. c4 {[%clk 0:00:01]}  Bb4+ {[%clk 0:00:01]} 11. Ke2 {[%clk 0:00:01]}  f5 {[%clk 0:00:01]} 12. Nf2 {[%clk 0:00:01]}  Ne7 {[%clk 0:00:01]} 13. Nd3 {[%clk 0:00:01]}  Ba6 {[%clk 0:00:01]} 14. Be3 {[%clk 0:00:01]}  Qb8 {[%clk 0:00:01]} 15. Qb3 {[%clk 0:00:01]}  Ba5 {[%clk 0:00:01]} 16. Qa4 {[%clk 0:00:01]}  Nd5 {[%clk 0:00:01]} 17. Qxa5 {[%clk 0:00:01]}  Bxc4 {[%clk 0:00:01]} 18. b3 {[%clk 0:00:01]}  Bb5 {[%clk 0:00:00]} 19. Kf2 {[%clk 0:00:00]}  g5 {[%clk 0:00:00]} 20. Qd2 {[%clk 0:00:00]}  Bxd3 {[%clk 0:00:00]} 21. Bxd3 {[%clk 0:00:00]}  gxf4 {[%clk 0:00:00]} 22. Bxf4 {[%clk 0:00:00]}  Rg8 {[%clk 0:00:00]} 23. g3 {[%clk 0:00:00]}  h5 {[%clk 0:00:00]} 24. Rhf1 {[%clk 0:00:00]}  h4 {[%clk 0:00:00]} 25. Kg2 {[%clk 0:00:00]}  c5 {[%clk 0:00:00]} 26. Kh1 {[%clk 0:00:00]}  Qb7 {[%clk 0:00:00]} 27. Qg2 {[%clk 0:00:00]}  h3 {[%clk 0:00:00]} 28. Qf3 {[%clk 0:00:00]}  Rg4 {[%clk 0:00:00]} 29. Bc4 {[%clk 0:00:00]}  Qb4 {[%clk 0:00:00]} 30. Bxd5 {[%clk 0:00:00]}  exd5 {[%clk 0:00:00]} 31. Qxd5 {[%clk 0:00:00]}  O-O-O {[%clk 0:00:00]} 32. Rac1 {[%clk 0:00:00]}  d6 {[%clk 0:00:00]} 33. exd6 {[%clk 0:00:00]}  Qe4+ {[%clk 0:00:00]} 34. Qxe4 {[%clk 0:00:00]}  fxe4 {[%clk 0:00:00]} 35. Rxc5+ {[%clk 0:00:00]}  Kd7 {[%clk 0:00:00]} 36. Rc7+ {[%clk 0:00:00]}  Ke6 {[%clk 0:00:00]} 37. Re1 {[%clk 0:00:00]}  Kd5 {[%clk 0:00:00]} 38. Rc4 {[%clk 0:00:00]}  Re8 {[%clk 0:00:00]} 39. Rd1+ {[%clk 0:00:00]} 1-0


[Site "https://www.chess.com"]

[Event "Titled Tuesday Blitz May 2 Early 2023"]
[White "Karttunen, Mika"]
[Black "Hartikainen, Jarmo"]
[WhiteFideId "502081"]
[BlackFideId "503134"]
[WhiteElo "2396"]
[BlackElo "2108"]
[Result "1-0"]
[Round "01"]
[TimeControl "180+2"]
[Date "2023.05.02"]
[WhiteClock "0:00:01"]
[BlackClock "0:00:00"]

1. e4 {[%clk 0:00:01]}  c5 {[%clk 0:00:01]} 2. Nf3 {[%clk 0:00:01]}  Nc6 {[%clk 0:00:01]} 3. d4 {[%clk 0:00:01]}  cxd4 {[%clk 0:00:01]} 4. Nxd4 {[%clk 0:00:01]}  e5 {[%clk 0:00:01]} 5. Nb5 {[%clk 0:00:01]}  d6 {[%clk 0:00:01]} 6. c4 {[%clk 0:00:01]}  a6 {[%clk 0:00:01]} 7. N5c3 {[%clk 0:00:01]}  Nf6 {[%clk 0:00:01]} 8. Na3 {[%clk 0:00:01]}  Be6 {[%clk 0:00:01]} 9. Nc2 {[%clk 0:00:01]}  Be7 {[%clk 0:00:01]} 10. Be2 {[%clk 0:00:01]}  O-O {[%clk 0:00:01]} 11. O-O {[%clk 0:00:01]}  Rb8 {[%clk 0:00:01]} 12. Be3 {[%clk 0:00:01]}  b6 {[%clk 0:00:01]} 13. h3 {[%clk 0:00:01]}  Re8 {[%clk 0:00:01]} 14. Qd2 {[%clk 0:00:01]}  Bf8 {[%clk 0:00:01]} 15. Rfd1 {[%clk 0:00:01]}  Qc8 {[%clk 0:00:01]} 16. Rac1 {[%clk 0:00:01]}  Na5 {[%clk 0:00:00]} 17. b3 {[%clk 0:00:01]}  Rb7 {[%clk 0:00:00]} 18. Nb4 {[%clk 0:00:01]}  Rc7 {[%clk 0:00:00]} 19. Bxb6 {[%clk 0:00:01]} 1-0


[Site "https://www.chess.com"]

[Event "Titled Tuesday Blitz May 2 Early 2023"]
[White "Goncalves, Davi Sulzbacher"]
[Black "Necula, Iulian"]
[WhiteFideId "2154510"]
[BlackFideId "1232380"]
[WhiteElo "2182"]
[BlackElo "1790"]
[Result "1-0"]
[Round "01"]
[TimeControl "180+2"]
[Date "2023.05.02"]
[WhiteClock "0:00:00"]
[BlackClock "0:00:00"]

1. d4 {[%clk 0:00:01]}  d6 {[%clk 0:00:01]} 2. c4 {[%clk 0:00:01]}  e5 {[%clk 0:00:01]} 3. Nf3 {[%clk 0:00:01]}  e4 {[%clk 0:00:01]} 4. Nfd2 {[%clk 0:00:01]}  f5 {[%clk 0:00:01]} 5. Nc3 {[%clk 0:00:01]}  Nf6 {[%clk 0:00:01]} 6. e3 {[%clk 0:00:01]}  c6 {[%clk 0:00:01]} 7. d5 {[%clk 0:00:01]}  g6 {[%clk 0:00:01]} 8. Be2 {[%clk 0:00:01]}  Bg7 {[%clk 0:00:01]} 9. O-O {[%clk 0:00:01]}  O-O {[%clk 0:00:01]} 10. Nb3 {[%clk 0:00:01]}  a5 {[%clk 0:00:01]} 11. Nd4 {[%clk 0:00:01]}  cxd5 {[%clk 0:00:01]} 12. cxd5 {[%clk 0:00:01]}  Na6 {[%clk 0:00:01]} 13. Bd2 {[%clk 0:00:01]}  Nc5 {[%clk 0:00:01]} 14. a3 {[%clk 0:00:01]}  Qb6 {[%clk 0:00:01]} 15. Bb5 {[%clk 0:00:00]}  Bd7 {[%clk 0:00:00]} 16. b4 {[%clk 0:00:00]}  Nd3 {[%clk 0:00:00]} 17. bxa5 {[%clk 0:00:00]}  Rxa5 {[%clk 0:00:00]} 18. Bxd3 {[%clk 0:00:00]}  exd3 {[%clk 0:00:00]} 19. Rb1 {[%clk 0:00:00]}  Qa7 {[%clk 0:00:00]} 20. Ncb5 {[%clk 0:00:00]}  Bxb5 {[%clk 0:00:00]} 21. Nxb5 {[%clk 0:00:00]}  Rxb5 {[%clk 0:00:00]} 22. Rxb5 {[%clk 0:00:00]}  Qa6 {[%clk 0:00:00]} 23. Qb3 {[%clk 0:00:00]}  Ne4 {[%clk 0:00:00]} 24. Ba5 {[%clk 0:00:00]}  d2 {[%clk 0:00:00]} 25. Rd1 {[%clk 0:00:00]}  Be5 {[%clk 0:00:00]} 26. Bxd2 {[%clk 0:00:00]}  Nc5 {[%clk 0:00:00]} 27. Qc4 {[%clk 0:00:00]}  Qa7 {[%clk 0:00:00]} 28. Bb4 {[%clk 0:00:00]}  Rb8 {[%clk 0:00:00]} 29. Bxc5 {[%clk 0:00:00]}  dxc5 {[%clk 0:00:00]} 30. Qxc5 {[%clk 0:00:00]}  Qa4 {[%clk 0:00:00]} 31. Rdb1 {[%clk 0:00:00]}  Re8 {[%clk 0:00:00]} 32. Rxb7 {[%clk 0:00:00]}  Bf6 {[%clk 0:00:00]} 33. d6 {[%clk 0:00:00]}  Bd8 {[%clk 0:00:00]} 34. Qd5+ {[%clk 0:00:00]} 1-0


[Site "https://www.chess.com"]

[Event "Titled Tuesday Blitz May 2 Early 2023"]
[White "Ronka, Erik"]
[Black "Smith, Shreyas"]
[WhiteFideId "505080"]
[BlackFideId "7400713"]
[WhiteElo "2264"]
[BlackElo "2151"]
[Result "1-0"]
[Round "01"]
[TimeControl "180+2"]
[Date "2023.05.02"]
[WhiteClock "0:00:01"]
[BlackClock "0:00:00"]

1. e4 {[%clk 0:00:01]}  c5 {[%clk 0:00:01]} 2. Nf3 {[%clk 0:00:01]}  Nc6 {[%clk 0:00:01]} 3. d4 {[%clk 0:00:01]}  cxd4 {[%clk 0:00:01]} 4. Nxd4 {[%clk 0:00:01]}  e6 {[%clk 0:00:01]} 5. Nb5 {[%clk 0:00:01]}  d6 {[%clk 0:00:01]} 6. Bf4 {[%clk 0:00:01]}  e5 {[%clk 0:00:01]} 7. Be3 {[%clk 0:00:01]}  Nf6 {[%clk 0:00:01]} 8. N5c3 {[%clk 0:00:01]}  Be7 {[%clk 0:00:01]} 9. Bc4 {[%clk 0:00:01]}  O-O {[%clk 0:00:01]} 10. O-O {[%clk 0:00:01]}  Ng4 {[%clk 0:00:01]} 11. Bc1 {[%clk 0:00:01]}  Bg5 {[%clk 0:00:01]} 12. Nd5 {[%clk 0:00:01]}  Nd4 {[%clk 0:00:01]} 13. c3 {[%clk 0:00:01]}  Bxc1 {[%clk 0:00:01]} 14. Qxc1 {[%clk 0:00:01]}  Qh4 {[%clk 0:00:00]} 15. h3 {[%clk 0:00:01]}  Nf3+ {[%clk 0:00:00]} 16. Kh1 {[%clk 0:00:01]}  Nxf2+ {[%clk 0:00:00]} 17. Rxf2 {[%clk 0:00:01]}  Qxf2 {[%clk 0:00:00]} 18. Qf1 {[%clk 0:00:01]}  Qxf1+ {[%clk 0:00:00]} 19. Bxf1 {[%clk 0:00:01]}  Ng5 {[%clk 0:00:00]} 20. Na3 {[%clk 0:00:01]}  Ne6 {[%clk 0:00:00]} 21. Nb5 {[%clk 0:00:01]}  Rd8 {[%clk 0:00:00]} 22. Rd1 {[%clk 0:00:01]}  a6 {[%clk 0:00:00]} 23. Na3 {[%clk 0:00:01]} 1-0


[Site "https://www.chess.com"]

[Event "Titled Tuesday Blitz May 2 Early 2023"]
[White "Karamsetty, Jeevan"]
[Black "Sanchez, Robert"]
[WhiteFideId "2025337"]
[BlackFideId "2034360"]
[WhiteElo "2111"]
[BlackElo "1966"]
[Result "1-0"]
[Round "01"]
[TimeControl "180+2"]
[Date "2023.05.02"]
[WhiteClock "0:00:00"]
[BlackClock "0:00:01"]

1. e4 {[%clk 0:00:01]}  e6 {[%clk 0:00:01]} 2. d4 {[%clk 0:00:01]}  d5 {[%clk 0:00:01]} 3. Bd3 {[%clk 0:00:01]}  dxe4 {[%clk 0:00:01]} 4. Bxe4 {[%clk 0:00:01]}  Nf6 {[%clk 0:00:01]} 5. Bf3 {[%clk 0:00:01]}  a6 {[%clk 0:00:01]} 6. Ne2 {[%clk 0:00:01]}  Bd6 {[%clk 0:00:01]} 7. O-O {[%clk 0:00:01]}  Nc6 {[%clk 0:00:01]} 8. Be3 {[%clk 0:00:01]}  h5 {[%clk 0:00:01]} 9. Nbc3 {[%clk 0:00:01]}  g5 {[%clk 0:00:01]} 10. Bxg5 {[%clk 0:00:01]}  Bxh2+ {[%clk 0:00:01]} 11. Kh1 {[%clk 0:00:01]}  Bd6 {[%clk 0:00:01]} 12. Qd2 {[%clk 0:00:01]}  Bd7 {[%clk 0:00:01]} 13. Ng3 {[%clk 0:00:01]}  Be7 {[%clk 0:00:01]} 14. Rae1 {[%clk 0:00:00]}  Ng4 {[%clk 0:00:01]} 15. Bf4 {[%clk 0:00:00]}  Bd6 {[%clk 0:00:01]} 16. Nf5 {[%clk 0:00:00]}  Kf8 {[%clk 0:00:01]} 17. Nxd6 {[%clk 0:00:00]}  cxd6 {[%clk 0:00:01]} 18. Bxd6+ {[%clk 0:00:00]}  Kg8 {[%clk 0:00:01]} 19. Qf4 {[%clk 0:00:00]} 1-0


[Site "https://www.chess.com"]